bitfinex/quotes_ETHUSD_20240928
["timestamp","ask_amount","ask_price","bid_price","bid_amount"]
[1727484554240,9.48795836,2702.3,2702.2,0.08723331]
[1727484554449,11.81225886,2702.3,2702.2,0.00411372]
[1727484554667,11.14838266,2702.3,2702.2,0.00411372]
[1727484554819,13.8594589,2702.3,2702.2,0.00411372]
[1727484555021,14.24682305,2702.3,2702.2,0.00411372]
[1727484555265,11.53574681,2702.3,2702.2,0.00411372]
[1727484555857,14.73820562,2702.3,2702.2,0.00411372]
[1727484556220,16.73820562,2702.3,2702.2,0.00411372]
[1727484558759,13.53574681,2702.3,2702.2,0.00411372]
[1727484559322,3.70154,2701.6,2701.0,6.1258543]
[1727484559523,1.16049075,2701.3,2701.1,0.08449884]
[1727484559757,1.16049075,2701.3,2701.0,6.1258543]
[1727484560146,1.16049075,2701.3,2701.1,0.08449884]
[1727484560345,1.547321,2701.5,2701.0,6.1258543]
[1727484560346,1.16049075,2701.4,2701.0,6.1258543]
[1727484560554,1.16049075,2701.4,2701.2,0.08438769]
[1727484560861,1.16049075,2701.3,2701.0,6.1258543]
[1727484561165,1.16049075,2701.4,2701.0,6.1258543]
[1727484561324,1.16049075,2701.3,2701.1,0.08449884]
[1727484561519,1.16049075,2701.4,2701.0,6.1258543]
[1727484561760,1.16049075,2701.4,2701.1,0.08449884]
[1727484561961,1.16049075,2701.4,2701.0,6.1258543]
[1727484562171,1.16049075,2701.3,2701.2,0.08438769]
[1727484562351,1.16049075,2701.3,2701.1,0.08449884]
[1727484562666,1.16049075,2701.4,2701.0,6.1258543]
[1727484563161,1.16049075,2701.4,2701.1,0.08449884]
[1727484563661,1.16049075,2701.3,2701.0,4.46543]
[1727484563967,1.16049075,2701.3,2701.0,6.1258543]
[1727484564162,1.16049075,2701.3,2701.1,0.08449884]
[1727484564660,1.16049075,2701.4,2701.1,0.08449884]
[1727484567238,1.16049075,2701.5,2701.1,0.08449884]
[1727484567447,1.16049075,2701.5,2701.0,6.1258543]
[1727484567448,1.16049075,2701.4,2701.0,6.1258543]
[1727484567650,1.16049075,2701.4,2701.2,0.08460126]
[1727484567847,1.16049075,2701.4,2701.0,6.1258543]
[1727484568176,1.16049075,2701.4,2701.1,0.0847124]
[1727484568378,5.69650754,2701.4,2701.1,0.0847124]
[1727484568671,5.69650754,2701.4,2701.0,0.7631]
[1727484568872,4.86228075,2701.4,2701.0,0.7631]
[1727484569078,4.86228075,2701.4,2701.1,0.0847124]
[1727484569375,1.16049075,2701.4,2701.1,0.0847124]
[1727484571278,4.86232075,2701.4,2701.1,0.0847124]
[1727484571655,1.16049075,2701.3,2701.1,0.0847124]
[1727484571974,1.16049075,2701.3,2700.8,0.7932]
[1727484571975,0.60228115,2701.2,2700.8,0.7932]
[1727484572178,1.16049075,2701.3,2700.8,2.4536243]
[1727484572474,1.16049075,2701.3,2700.9,0.08493472]
[1727484575965,4.88254983,2701.4,2700.9,0.08493472]
[1727484576166,6.46725039,2701.4,2700.9,0.08493472]
[1727484576990,1.16049075,2701.3,2700.9,0.08493472]
[1727484577665,6.46725039,2701.4,2700.9,0.08493472]
[1727484578017,1.16049075,2701.3,2700.9,0.08493472]
[1727484578511,6.46725039,2701.4,2700.9,0.08493472]
[1727484578720,2.04032789,2701.3,2700.9,0.08493472]
[1727484579079,0.87983714,2701.3,2700.9,0.08493472]
[1727484579300,2.04032789,2701.3,2700.9,0.08493472]
[1727484580210,0.87983714,2701.3,2700.9,0.08493472]
[1727484580388,2.04032789,2701.3,2700.9,0.08493472]
[1727484581980,2.8337316,2701.2,2700.9,0.08493472]
[1727484582601,1.67324085,2701.2,2700.9,0.08493472]
[1727484582802,2.8337316,2701.2,2700.9,0.08493472]
[1727484584203,1.67324085,2701.2,2700.9,0.08493472]
[1727484584419,2.8337316,2701.2,2700.9,0.08493472]
[1727484584914,0.43810526,2701.1,2700.9,0.08493472]
[1727484586676,1.59859601,2701.1,2700.9,0.08493472]
[1727484587216,0.43810526,2701.1,2700.9,0.08493472]
[1727484587379,1.59859601,2701.1,2700.9,0.08493472]
[1727484587782,1.59859601,2701.1,2700.9,1.74535902]
[1727484588007,0.48191579,2701.0,2700.9,1.74535902]
[1727484589025,1.16049075,2701.1,2700.9,1.74535902]
[1727484590793,2.331121,2701.2,2700.9,1.74535902]
[1727484590794,1.94429075,2701.2,2700.9,1.74535902]
[1727484590996,1.16049075,2701.1,2700.9,1.74535902]
[1727484592502,1.16049075,2701.1,2700.9,1.6604243]
[1727484592721,1.16049075,2701.1,2701.0,0.08545623]
[1727484593719,1.16030598,2701.1,2701.0,0.08545623]
[1727484593921,2.331121,2701.2,2701.0,0.08545623]
[1727484594125,1.16030923,2701.1,2701.0,0.08545623]
[1727484594933,1.16055942,2701.1,2701.0,0.08545623]
[1727484595512,1.547321,2701.2,2701.0,0.08545623]
[1727484596423,1.16073489,2701.1,2701.0,0.08545623]
[1727484596604,1.547321,2701.2,2701.0,0.08545623]
[1727484596808,1.93456284,2701.3,2701.0,0.08545623]
[1727484596809,1.547321,2701.1,2701.0,0.08545623]
[1727484597209,1.547321,2701.2,2701.0,0.08545623]
[1727484597618,1.547321,2701.1,2701.0,0.08545623]
[1727484599619,1.93456284,2701.2,2701.0,0.08545623]
[1727484600507,0.50283673,2701.3,2701.0,0.08545623]
[1727484600508,1.93456284,2701.1,2701.0,0.08545623]
[1727484603246,3.7521,2701.1,2701.0,0.08545623]
[1727484603443,6.0735754,2701.1,2700.6,0.7639]
[1727484603750,1.55006117,2700.7,2700.0,3.7036]
[1727484603919,1.16237329,2700.2,2700.1,6.1278743]
[1727484605413,1.16237329,2700.3,2700.1,6.1278743]
[1727484605744,1.16237329,2700.3,2700.1,6.1278843]
[1727484606054,1.16237329,2700.3,2700.2,0.0837822]
[1727484606413,1.1611121,2700.3,2700.2,0.0837822]
[1727484608840,1.1611121,2700.3,2700.2,3.7872022]
[1727484609167,1.1611121,2700.4,2700.2,0.0837822]
[1727484609367,1.16103021,2700.4,2700.3,1.6604243]
[1727484609872,4.54983105,2700.5,2700.3,1.74187968]
[1727484610425,1.16086782,2700.4,2700.3,1.74187968]
[1727484617070,4.16086782,2700.5,2700.3,1.74187968]
[1727484617472,1.16086782,2700.4,2700.3,1.74187968]
[1727484617842,4.16086782,2700.5,2700.3,1.74187968]
[1727484618286,1.16086782,2700.4,2700.3,1.74187968]
[1727484618651,1.16086782,2700.4,2700.3,1.6604243]
[1727484618986,4.16086782,2700.5,2700.3,1.74189979]
[1727484619161,1.16086782,2700.4,2700.3,1.6604243]
[1727484619384,1.16086782,2700.4,2700.3,1.74189979]
[1727484619885,4.16086782,2700.5,2700.3,1.74189979]
[1727484620084,1.16086782,2700.4,2700.3,1.6604243]
[1727484620456,4.16086782,2700.5,2700.3,1.6604243]
[1727484621493,1.16086782,2700.4,2700.3,1.6604243]
[1727484623502,4.16086782,2700.5,2700.3,1.6604243]
[1727484623697,1.16086782,2700.4,2700.3,1.74194004]
[1727484623911,1.93256782,2700.4,2700.3,0.08151574]
[1727484624134,6.95920153,2700.4,2700.3,0.08151574]
[1727484624427,6.95920153,2700.4,2699.7,4.5024]
[1727484624428,0.8132,2700.2,2699.8,1.6604243]
[1727484624726,1.15944415,2700.1,2699.8,1.6604243]
[1727484625188,1.15944415,2700.0,2699.6,1.6604243]
[1727484625388,1.86630112,2700.0,2699.8,1.6604243]
[1727484625701,1.86630112,2700.0,2699.9,0.08198078]
[1727484626222,1.86630112,2700.0,2699.8,1.6604243]
[1727484626928,1.86630112,2700.0,2699.9,0.08198078]
[1727484627827,0.70685697,2700.0,2699.9,0.08198078]
[1727484628029,2.67950112,2700.0,2699.9,0.08198078]
[1727484628404,2.67950112,2700.0,2699.8,1.6604243]
[1727484628600,2.67950112,2700.0,2699.9,0.08198078]
[1727484628805,1.52005697,2700.0,2699.9,0.08198078]
[1727484629022,2.67950112,2700.0,2699.9,0.08198078]
[1727484629220,1.52005697,2700.0,2699.9,0.08198078]
[1727484629524,0.8132,2700.0,2699.8,1.6604243]
[1727484629890,0.8132,2700.0,2699.9,0.08216992]
[1727484630499,1.97264415,2700.0,2699.9,0.08216992]
[1727484630732,0.8132,2700.0,2699.9,0.08216992]
[1727484631904,3.0,2700.1,2699.9,0.12301664]
[1727484632104,1.15944415,2700.2,2700.0,5.3641243]
[1727484632420,4.15944415,2700.3,2700.0,5.48723342]
[1727484632615,4.15944415,2700.3,2700.2,1.6604243]
[1727484633018,4.15944415,2700.3,2700.2,1.78330793]
[1727484633309,4.15944415,2700.3,2700.2,1.6604243]
[1727484633508,4.15944415,2700.3,2700.2,1.78330793]
[1727484633921,4.92306386,2700.3,2700.2,0.12288363]
[1727484634224,3.76361971,2700.3,2700.2,1.6604243]
[1727484634411,3.76361971,2700.3,2700.2,1.78330793]
[1727484634412,4.92213318,2700.3,2700.2,1.78330793]
[1727484634604,0.76361971,2700.3,2700.2,1.78330793]
[1727484634819,4.92216778,2700.3,2700.2,1.78330793]
[1727484635217,1.15854807,2700.3,2700.2,1.78330793]
[1727484635431,4.15854807,2700.4,2700.2,1.78330793]
[1727484635629,1.15854807,2700.4,2700.2,1.78330793]
[1727484635846,1.15854807,2700.4,2700.3,3.70329]
[1727484636151,1.15854807,2700.6,2700.4,4.49681]
[1727484636334,1.15854807,2700.8,2700.4,6.1572343]
[1727484636541,1.15854807,2700.8,2700.6,1.6604243]
[1727484636853,1.15854807,2700.8,2700.7,0.12232005]
[1727484637053,2.35912554,2700.8,2700.7,0.12232005]
[1727484637223,3.15768381,2700.8,2700.4,1.6604243]
[1727484637424,1.15890718,2700.6,2700.4,1.6604243]
[1727484637659,1.15890718,2700.6,2700.5,0.12254546]
[1727484639215,4.54523851,2700.7,2700.5,0.12254546]
[1727484639379,5.05418188,2700.6,2700.5,0.12254546]
[1727484639900,2.05418188,2700.6,2700.5,0.12254546]
[1727484641196,0.50894337,2700.6,2700.5,0.12254546]
[1727484641412,4.54523851,2700.7,2700.5,0.12254546]
[1727484641561,1.54523851,2700.6,2700.5,0.12254546]
[1727484644589,4.93344335,2700.7,2700.5,0.12254546]
[1727484645099,1.54750515,2700.6,2700.5,0.91014546]
[1727484645515,4.93344335,2700.7,2700.5,0.12254546]
[1727484645669,1.54789901,2700.6,2700.5,0.12254546]
[1727484646070,5.50671221,2700.7,2700.5,0.12254546]
[1727484647514,1.93344335,2700.6,2700.5,0.12254546]
[1727484647817,1.9351057,2700.6,2700.5,0.12254546]
[1727484650293,5.79808037,2700.6,2700.5,0.12254546]
[1727484652581,2.79936082,2700.6,2700.5,0.12254546]
[1727484652931,5.79936082,2700.6,2700.5,0.12254546]
[1727484654321,3.86297467,2700.6,2700.5,0.12254546]
[1727484654513,1.63817467,2700.6,2700.3,1.6604243]
[1727484654707,1.93624488,2700.4,2700.3,1.6604243]
[1727484655279,1.93624488,2700.5,2700.3,1.6604243]
[1727484655789,1.54902897,2700.4,2700.3,1.6604243]
[1727484655988,1.54904777,2700.4,2700.3,1.6604243]
[1727484656211,1.93624488,2700.5,2700.3,1.6604243]
[1727484656597,1.93624488,2700.4,2700.3,1.6604243]
[1727484657034,1.93624488,2700.5,2700.3,1.6604243]
[1727484657240,1.93624488,2700.4,2700.3,1.6604243]
[1727484657414,1.93624488,2700.5,2700.3,1.6604243]
[1727484657614,1.54910067,2700.4,2700.3,1.6604243]
[1727484657934,1.93637769,2700.4,2700.3,1.6604243]
[1727484658099,1.93637769,2700.5,2700.3,1.6604243]
[1727484658626,1.93637769,2700.4,2700.3,1.6604243]
[1727484659721,2.80088942,2700.5,2700.3,1.6604243]
[1727484659923,1.93637769,2700.4,2700.3,1.6604243]
[1727484660305,2.80088942,2700.5,2700.3,1.6604243]
[1727484660935,2.80088942,2700.5,2700.1,4.49116]
[1727484660936,2.29398663,2700.4,2700.1,4.49116]
[1727484661139,2.29398663,2700.4,2700.1,6.1515843]
[1727484661140,1.54894486,2700.3,2700.1,6.1515843]
[1727484661341,1.54894486,2700.2,2700.1,6.1515843]
[1727484661505,2.29398663,2700.4,2700.2,3.70342]
[1727484661842,1.93637769,2700.4,2700.2,3.70342]
[1727484662026,1.54894583,2700.3,2700.2,3.70342]
[1727484662226,1.54891866,2700.3,2700.2,3.70342]
[1727484662543,1.93637769,2700.4,2700.2,3.70342]
[1727484662745,5.71157769,2700.3,2699.9,1.6604243]
[1727484662946,1.16164586,2700.0,2699.9,5.3642443]
[1727484663300,1.1616673,2700.0,2699.9,5.3642443]
[1727484663809,1.54886115,2700.0,2699.9,5.3642443]
[1727484664530,1.54886115,2700.1,2699.9,5.3642443]
[1727484665047,1.54886115,2700.0,2699.9,5.3642443]
[1727484665833,1.54886115,2700.1,2699.9,5.48731324]
[1727484666708,1.54886115,2700.0,2699.9,5.48731324]
[1727484668049,1.54886115,2700.1,2699.9,5.48731324]
[1727484668254,1.54886115,2700.1,2700.0,3.7037]
[1727484668404,1.54886115,2700.1,2700.0,3.82617228]
[1727484670655,1.93659318,2700.2,2700.0,3.82617228]
[1727484670656,1.54886115,2700.2,2700.0,3.82617228]
[1727484670845,1.93718309,2700.2,2700.0,1.78289658]
[1727484671153,1.54970749,2700.1,2700.0,1.78289658]
[1727484671679,1.93718309,2700.1,2700.0,1.78289658]
[1727484675430,1.93781993,2700.1,2700.0,1.78289658]
[1727484675760,1.93777825,2700.1,2700.0,1.78289658]
[1727484676260,2.51943786,2700.1,2700.0,1.78289658]
[1727484677566,2.51967966,2700.1,2700.0,1.78289658]
[1727484677883,1.93802005,2700.1,2700.0,1.78289658]
[1727484678169,1.93802005,2700.2,2700.0,1.78289658]
[1727484678667,1.93802005,2700.1,2700.0,1.78289658]
[1727484679381,1.93802005,2700.2,2700.0,1.78289658]
[1727484679560,1.93802005,2700.1,2700.0,1.78289658]
[1727484680461,1.93777238,2700.1,2700.0,1.78289658]
[1727484681481,1.93777238,2700.1,2700.0,0.12247228]
[1727484681686,1.3405,2700.1,2699.6,5.3645843]
[1727484681894,1.55013532,2699.7,2699.6,1.6604243]
[1727484683653,1.55013532,2699.8,2699.6,1.6604243]
[1727484683990,1.16248111,2699.8,2699.7,5.3645343]
[1727484684489,1.16248111,2699.8,2699.7,6.1947343]
[1727484685351,1.16248111,2699.9,2699.8,3.70397]
[1727484685554,1.16248111,2699.9,2699.8,5.3643943]
[1727484685756,1.16250583,2699.9,2699.8,5.3643943]
[1727484689864,1.16250583,2700.0,2699.9,3.70384]
[1727484690192,1.1627422,2700.1,2700.0,4.5339]
[1727484690416,1.1627422,2700.1,2700.0,6.1943243]
[1727484692663,1.55013532,2700.2,2700.1,3.70356]
[1727484694418,1.55013532,2700.2,2700.0,2.4906243]
[1727484694576,1.55086546,2700.1,2700.0,1.6604243]
[1727484695417,1.55086546,2700.1,2700.0,5.3640943]
[1727484696107,1.55086546,2700.1,2700.0,5.4866083]
[1727484698913,1.93871306,2700.3,2700.1,3.70356]
[1727484699109,1.93871306,2700.3,2700.2,1.6604243]
[1727484699316,1.93923582,2700.3,2700.2,1.78271281]
[1727484699686,3.7533,2700.4,2700.2,1.78271281]
[1727484700214,1.93936154,2700.3,2700.2,1.78271281]
[1727484701181,0.7533,2700.4,2700.2,1.78271281]
[1727484701403,3.7533,2700.4,2700.2,1.78271281]
[1727484701740,4.6613587,2700.4,2700.2,1.78271281]
[1727484705232,3.7533,2700.4,2700.2,1.78271281]
[1727484707437,3.7533,2700.4,2700.2,5.48613281]
[1727484707803,1.93943872,2700.3,2700.2,5.48613281]
[1727484708002,3.7533,2700.4,2700.2,5.48613281]
[1727484708410,3.7533,2700.4,2700.2,1.78271281]
[1727484708635,4.36137115,2700.4,2700.2,1.78271281]
[1727484712846,6.68871729,2700.4,2700.2,1.78271281]
[1727484713617,4.36137115,2700.4,2700.2,1.78271281]
[1727484714010,6.68871729,2700.4,2700.2,1.78271281]
[1727484714328,4.36137115,2700.4,2700.2,1.78271281]
[1727484714514,6.68871729,2700.4,2700.2,1.78271281]
[1727484714719,4.36137115,2700.4,2700.2,1.78271281]
[1727484714914,1.36137115,2700.4,2700.2,1.78271281]
[1727484715151,1.17476264,2700.3,2700.2,0.12228851]
[1727484715305,3.13315525,2700.3,2700.0,1.6604243]
[1727484715748,1.93928731,2700.1,2700.0,1.6604243]
[1727484716455,1.93929753,2700.1,2700.0,1.6604243]
[1727484716624,3.13315525,2700.3,2700.0,1.6604243]
[1727484716823,1.04443864,2700.2,2700.0,1.6604243]
[1727484717413,1.93921122,2700.1,2700.0,1.6604243]
[1727484717658,1.04443864,2700.2,2700.0,1.6604243]
[1727484717819,1.93922024,2700.1,2700.0,1.6604243]
[1727484718014,1.93925694,2700.1,2700.0,1.6604243]
[1727484718320,1.04443864,2700.2,2700.0,1.6604243]
[1727484719047,1.93925023,2700.1,2700.0,1.6604243]
[1727484719250,1.04443864,2700.2,2700.0,1.6604243]
[1727484719451,1.93921259,2700.1,2700.0,1.6604243]
[1727484719817,1.04443864,2700.2,2700.0,1.6604243]
[1727484720014,1.93923317,2700.1,2700.0,1.6604243]
[1727484720339,1.9392817,2700.1,2700.0,1.6604243]
[1727484720543,1.93924643,2700.1,2700.0,1.6604243]
[1727484720845,1.93924569,2700.1,2700.0,1.6604243]
[1727484721832,1.93924569,2700.1,2700.0,5.3641243]
[1727484722035,1.93924569,2700.2,2700.0,5.3641243]
[1727484722246,0.6741051,2700.3,2700.1,1.6604243]
[1727484722423,1.93938259,2700.2,2700.1,1.6604243]
[1727484723160,1.16389459,2700.3,2700.2,4.48872]
[1727484723367,1.16389459,2700.3,2700.2,5.02513243]
[1727484723521,1.16389459,2700.4,2700.3,3.70329]
[1727484723833,1.16389459,2700.4,2700.3,5.3637143]
[1727484724185,1.55191003,2700.5,2700.4,3.70315]
[1727484725478,1.55191003,2700.5,2700.3,1.6604243]
[1727484725479,0.4267179,2700.5,2700.3,1.6604243]
[1727484725667,1.55303538,2700.4,2700.3,5.3637043]
[1727484726037,1.55303538,2700.4,2700.3,5.48548191]
[1727484726747,1.55303538,2700.4,2700.3,1.78220191]
[1727484728471,2.13907483,2700.4,2700.3,0.12177761]
[1727484728969,2.13907483,2700.4,2700.3,0.12178968]
[1727484729147,2.13907483,2700.4,2700.1,5.3639043]
[1727484729349,1.16471492,2700.2,2700.1,5.3639043]
[1727484729872,1.55295323,2700.3,2700.1,5.3639043]
[1727484730087,1.55295323,2700.3,2700.1,9.0673943]
[1727484730371,1.16489356,2700.2,2700.1,9.0673943]
[1727484730951,1.55295323,2700.3,2700.1,9.0673943]
[1727484731470,1.55295323,2700.3,2700.2,3.70342]
[1727484732789,1.55295323,2700.3,2700.1,9.0673943]
[1727484733266,1.55295323,2700.3,2700.1,5.3639043]
[1727484733462,1.55295323,2700.2,2700.1,5.3639043]
[1727484733670,1.55295323,2700.2,2700.1,5.3639843]
[1727484733976,1.55295323,2700.3,2700.2,3.70342]
[1727484734178,1.55295323,2700.3,2700.2,5.3638443]
[1727484735595,1.9410995,2700.3,2700.2,5.3638443]
[1727484735899,1.55318807,2700.3,2700.2,5.3638443]
[1727484736057,1.9410995,2700.4,2700.2,5.3638443]
[1727484736403,1.9410995,2700.4,2700.2,9.0672643]
[1727484736570,1.55317516,2700.3,2700.2,5.3638443]
[1727484736894,2.36814139,2700.4,2700.2,5.3638443]
[1727484737055,1.55316152,2700.3,2700.2,5.3638443]
[1727484737253,1.9410995,2700.4,2700.2,5.3638443]
[1727484737495,1.9410995,2700.4,2700.2,9.0671943]
[1727484737698,1.55316823,2700.3,2700.2,9.0671943]
[1727484739381,1.55316823,2700.3,2700.2,5.3637743]
[1727484741116,1.55316823,2700.3,2700.2,5.48574908]
[1727484743393,1.55316823,2700.4,2700.3,3.70329]
[1727484743594,1.9414637,2700.5,2700.3,5.48557634]
[1727484743987,1.55314804,2700.4,2700.3,5.48557634]
[1727484744700,1.9414637,2700.5,2700.3,5.48557634]
[1727484744891,1.74759535,2700.4,2700.3,5.48557634]
[1727484745091,0.19414637,2700.4,2700.3,5.48557634]
[1727484745801,2.13561007,2700.4,2700.3,5.48557634]
[1727484745976,1.9414637,2700.4,2700.3,5.48557634]
[1727484746914,1.9414637,2700.5,2700.3,5.48557634]
[1727484747795,1.9414637,2700.4,2700.3,5.48557634]
[1727484748617,1.9414637,2700.4,2700.3,1.78228634]
[1727484748794,1.9414637,2700.4,2700.3,0.12186204]
[1727484748981,1.9414637,2700.4,2700.2,3.70341]
[1727484749176,1.55387401,2700.3,2700.2,3.70341]
[1727484755013,1.94252266,2700.4,2700.2,3.70341]
[1727484755215,1.55404088,2700.3,2700.2,3.70341]
[1727484755890,1.55404088,2700.3,2700.2,3.82543707]
[1727484762608,1.94252266,2700.4,2700.2,3.82543707]
[1727484762851,1.55404777,2700.3,2700.2,3.82543707]
[1727484763507,1.94252266,2700.4,2700.2,3.82543707]
[1727484764650,1.94252266,2700.3,2700.2,3.82543707]
[1727484769245,1.94374279,2700.3,2700.2,3.82543707]
[1727484769667,2.64374699,2700.5,2700.2,3.82543707]
[1727484769830,0.3426547,2700.4,2700.2,0.12202707]
[1727484770031,8.04899,2700.3,2700.2,0.12202707]
[1727484770259,3.7957,2700.0,2699.5,2.4782243]
[1727484770576,1.55380765,2699.6,2699.5,5.3648043]
[1727484770942,1.55380765,2699.6,2699.5,5.48014438]
[1727484771842,1.55309724,2699.6,2699.5,1.77576438]
[1727484772044,1.94357884,2699.6,2699.5,1.77576438]
[1727484772469,1.94357884,2699.7,2699.5,1.77576438]
[1727484772647,1.55194231,2699.6,2699.5,1.77576438]
[1727484773060,1.55194231,2699.6,2699.5,5.48014438]
[1727484773274,1.55194231,2699.7,2699.5,5.48014438]
[1727484774472,1.16327418,2699.6,2699.5,5.48014438]
[1727484775050,1.16327418,2699.6,2699.5,1.77576438]
[1727484778061,5.34764231,2699.6,2699.5,1.77576438]
[1727484778393,5.83436873,2699.6,2699.5,1.77576438]
[1727484778548,5.83436873,2699.6,2699.5,0.11534008]
[1727484778950,5.83436873,2699.6,2699.3,1.6604243]
[1727484779176,1.16230268,2699.5,2699.3,1.6604243]
[1727484779391,1.16230268,2699.5,2699.4,0.11591149]
[1727484780615,5.83436873,2699.6,2699.4,0.11591149]
[1727484780749,1.16200698,2699.5,2699.4,0.11591149]
[1727484781364,5.23204086,2699.5,2699.4,0.11591149]
[1727484781560,4.07006457,2699.5,2699.4,0.11591149]
[1727484781893,4.07006457,2699.5,2699.1,5.3653043]
[1727484781894,5.2317558,2699.5,2699.1,5.3653043]
[1727484782086,1.1617187,2699.4,2699.1,5.3653043]
[1727484782604,4.1617187,2699.5,2699.1,5.3653043]
[1727484783909,4.1617187,2699.5,2699.3,1.6604243]
[1727484784708,3.0,2699.5,2699.3,1.6604243]
[1727484785013,5.44414512,2699.6,2699.3,1.6604243]
[1727484785575,5.25606231,2699.7,2699.3,1.6604243]
[1727484785576,1.1617187,2699.7,2699.5,1.6604243]
[1727484786813,1.1617187,2699.8,2699.5,5.3648043]
[1727484787019,1.1617187,2699.9,2699.7,1.6604243]
[1727484787213,1.1617187,2699.9,2699.8,0.11556095]
[1727484787370,1.1617187,2699.9,2699.7,1.6604243]
[1727484787570,1.1617187,2699.9,2699.8,0.11179042]
[1727484787819,1.77366691,2699.9,2699.7,1.6604243]
[1727484788375,4.77366691,2699.9,2699.7,1.6604243]
[1727484789076,8.47750691,2699.9,2699.7,1.6604243]
[1727484789608,1.1617187,2699.8,2699.7,1.6604243]
[1727484789978,8.47750691,2699.9,2699.7,1.6604243]
[1727484790179,1.1617187,2699.8,2699.7,1.6604243]
[1727484790579,8.47750691,2699.9,2699.7,1.6604243]
[1727484790776,1.1617187,2699.8,2699.7,1.6604243]
[1727484794817,12.57165052,2699.9,2699.7,1.6604243]
[1727484795013,1.16113856,2699.8,2699.7,1.6604243]
[1727484795376,1.16113856,2699.8,2699.7,1.7723275]
[1727484796617,4.16113856,2699.9,2699.7,1.7723275]
[1727484797709,1.16113856,2699.8,2699.7,1.7723275]
[1727484798089,1.16113856,2699.8,2699.7,0.1119032]
[1727484798292,2.10283465,2699.8,2699.7,0.1119032]
[1727484799024,5.80683465,2699.8,2699.5,1.6604243]
[1727484799317,5.80683465,2699.8,2699.6,0.11201598]
[1727484799517,1.16113856,2699.7,2699.6,0.11201598]
[1727484805286,1.16113856,2699.8,2699.6,0.87361598]
[1727484805527,1.16113856,2699.8,2699.7,1.6604243]
[1727484805885,1.16113856,2699.8,2699.7,1.77233153]
[1727484809416,4.55194231,2699.9,2699.7,1.77233153]
[1727484810040,1.55194231,2699.9,2699.7,1.77233153]
[1727484810413,1.55194231,2699.8,2699.7,1.77233153]
[1727484813426,1.93842531,2699.9,2699.7,1.77233153]
[1727484813721,1.93842531,2699.8,2699.7,1.77233153]
[1727484815040,1.94172116,2699.8,2699.7,1.77233153]
[1727484815839,5.33006539,2700.0,2699.7,1.77233153]
[1727484823027,1.94267431,2699.8,2699.7,1.77233153]
[1727484823933,5.33006539,2700.0,2699.7,1.77233153]
[1727484825033,5.33126665,2700.0,2699.7,1.77233153]
[1727484825236,3.0,2699.9,2699.7,1.77233153]
[1727484826257,1.94279013,2699.8,2699.7,6.22693153]
[1727484826560,1.94274162,2699.8,2699.7,6.22693153]
[1727484826871,1.94274162,2699.8,2699.7,6.1150243]
[1727484827161,1.5541655,2699.8,2699.7,6.22683129]
[1727484827332,1.94274162,2699.8,2699.7,6.22683129]
[1727484828460,1.55448643,2699.8,2699.7,6.22683129]
[1727484829023,1.55448643,2699.9,2699.7,6.22683129]
[1727484829460,1.55448643,2699.8,2699.7,6.22683129]
[1727484830047,1.9433144,2699.8,2699.7,6.22683129]
[1727484830373,1.9433144,2699.9,2699.7,6.22683129]
[1727484830581,1.9433144,2699.8,2699.7,0.86230699]
[1727484830784,1.9433144,2699.8,2699.7,2.52273129]
[1727484831078,1.9433144,2699.9,2699.7,2.52273129]
[1727484831261,1.9433144,2699.9,2699.8,1.6604243]
[1727484831464,5.33197728,2700.1,2699.8,1.77211852]
[1727484833073,1.94363185,2699.9,2699.8,1.77211852]
[1727484834068,5.33197728,2700.1,2699.8,1.77211852]
[1727484839400,1.9438324,2699.9,2699.8,1.77211852]
[1727484839687,2.76511665,2699.9,2699.8,0.11169422]
[1727484839851,2.00144066,2699.9,2699.6,1.6604243]
[1727484840185,1.94380564,2699.8,2699.7,0.11173482]
[1727484840492,0.8213,2699.9,2699.7,0.11173482]
[1727484841250,3.15387998,2699.9,2699.7,0.11173482]
[1727484843091,3.15451171,2699.9,2699.7,0.11173482]
[1727484843891,4.41254191,2699.9,2699.7,0.11173482]
[1727484844065,2.33321171,2699.8,2699.7,0.11173482]
[1727484844395,4.41254191,2699.9,2699.7,0.11173482]
[1727484845091,2.33321171,2699.8,2699.4,1.6604243]
[1727484845303,1.9442818,2699.5,2699.4,1.6604243]
[1727484845664,1.9442818,2699.5,2699.4,1.77249346]
[1727484846387,1.94428682,2699.5,2699.4,1.77249346]
[1727484847601,0.8116,2699.6,2699.4,1.77249346]
[1727484848605,1.94376966,2699.5,2699.4,1.77249346]
[1727484850094,1.94218796,2699.5,2699.4,1.77249346]
[1727484851670,0.8116,2699.6,2699.4,1.77249346]
[1727484852300,3.14434413,2699.8,2699.4,1.77249346]
[1727484852608,3.14434413,2699.8,2699.4,5.47698346]
[1727484852769,3.14373598,2699.8,2699.4,5.47698346]
[1727484853508,1.55480563,2699.5,2699.4,5.47698346]
[1727484854603,3.14373598,2699.8,2699.4,5.47698346]
[1727484854811,4.3246676,2699.8,2699.4,5.47698346]
[1727484855607,1.55469651,2699.5,2699.4,5.47698346]
[1727484856167,1.55469651,2699.6,2699.5,3.70438]
[1727484856389,1.55473463,2699.6,2699.5,3.70438]
[1727484856693,1.55474637,2699.6,2699.5,7.52075246]
[1727484857006,1.94340125,2699.7,2699.5,3.81637246]
[1727484857404,1.55474913,2699.6,2699.5,7.52067246]
[1727484857784,1.55474913,2699.6,2699.5,3.81629246]
[1727484858708,1.94335721,2699.7,2699.5,3.81629246]
[1727484859069,1.55504581,2699.6,2699.5,3.81629246]
[1727484859284,1.94335721,2699.7,2699.5,3.81629246]
[1727484859498,1.94335721,2699.6,2699.5,3.81629246]
[1727484859697,1.55483533,2699.6,2699.5,3.81629246]
[1727484859914,1.94335721,2699.7,2699.5,3.81629246]
[1727484860219,1.55477828,2699.6,2699.5,3.81629246]
[1727484860917,1.94335721,2699.6,2699.5,3.81629246]
[1727484861819,1.55477806,2699.6,2699.5,3.81629246]
[1727484862128,1.55477806,2699.6,2699.5,0.11199246]
[1727484868728,0.8119,2699.6,2699.5,0.11199246]
[1727484869019,1.49674266,2699.6,2699.5,0.11199246]
[1727484869220,1.49674266,2699.6,2699.3,3.70465]
[1727484869385,1.49674266,2699.6,2699.5,0.1120005]
[1727484869386,0.8119,2699.6,2699.5,0.1120005]
[1727484869587,0.8119,2699.6,2699.4,0.1121133]
[1727484869791,3.14434664,2699.6,2699.5,0.1120005]
[1727484870192,0.8119,2699.6,2699.3,3.70465]
[1727484870510,1.94356581,2699.4,2699.3,3.70465]
[1727484871430,1.55469562,2699.4,2699.3,3.70465]
[1727484871730,1.94356581,2699.5,2699.2,3.70477]
[1727484871890,1.94356581,2699.5,2699.4,3.70452]
[1727484872094,1.94356581,2699.5,2699.3,1.6604243]
[1727484872328,1.55462456,2699.4,2699.3,5.3650643]
[1727484875893,1.55462456,2699.4,2699.3,5.4772904]
[1727484877633,1.94348468,2699.5,2699.3,5.4772904]
[1727484878340,1.55484005,2699.4,2699.3,5.4772904]
[1727484879193,1.94348468,2699.4,2699.3,5.4772904]
[1727484879627,1.94348468,2699.5,2699.3,5.4772904]
[1727484880317,1.55493706,2699.4,2699.3,5.4772904]